Cogmind - Beta 14 @@@ ROGUE MODE // 2024.10.11 @ 00:01:23 Player: Hokome Result: Destroyed by GX-3GF(R) with Subdweller Laser Performance ------------- Evolutions (0) 0 Regions Visited (3) 600 Robots Destroyed (19) 95 Value Destroyed (447) 447 Prototype IDs (0) 0 Alien Tech Used (0) 0 Bonus (0) 0 TOTAL SCORE: 1142 Bonus ------- None Cogmind --------- Core Integrity 0/250 Matter 279/300 Energy 150/150 System Corruption 0% Temperature Cool (6) Movement Core (500) Ox9 Location -10/Subcaves Parts ------- > --- POWER (1) -------- Light Angular Momentum Engine > --- PROPULSION (2) --- (None) > --- UTILITY (2) ------ Large Storage Unit > --- WEAPON (2) ------- (None) > --- INVENTORY (15) --- Light Ion Engine Improved Ion Engine Light Nuclear Core Light Treads Aluminum Leg Improved Heat Sink Improved Heat Sink Small Storage Unit Medium Matter Pod (100) Medium Laser Medium Laser Grenade Launcher Peak State ------------ > --- POWER ------------ Light Angular Momentum Engine > --- PROPULSION ------- Light Treads Light Treads > --- UTILITY ---------- Large Storage Unit Core Shielding > --- WEAPON ----------- Light Assault Rifle Grenade Launcher > --- INVENTORY -------- Ion Engine Light Ion Engine Improved Ion Engine Light Treads Aluminum Leg Heat Sink Small Storage Unit Medium Matter Pod Targeting Computer Light Armor Plating EM Pulse Gun Medium Laser Medium Laser Beamcaster Grenade Launcher [Rating: 13] Favorites ----------- Power Light Ion Engine Engine Light Ion Engine Propulsion Light Treads Treads Light Treads Utility Large Storage Unit Device Heat Sink Storage Large Storage Unit Processor Targeting Computer Protection Core Shielding Weapon Light Assault Rifle Energy Gun EM Pulse Gun Ballistic Gun Light Assault Rifle Launcher Grenade Launcher Build | -11 -10 -10 -10 ------- Run | Yrd Mat Min Sub Slots Evolved . | . . . . Power . | . . . . Propulsion . | . . . . Utility . | . . . . Weapon . | . . . . Parts Attached 17 | 6 4 5 2 Power 4 | 1 1 2 . Engine 4 | 1 1 2 . Core . | . . . . Reactor . | . . . . Propulsion 2 | 2 . . . Treads 2 | 2 . . . Leg . | . . . . Wheel . | . . . . Hover . | . . . . Flight . | . . . . Utility 6 | 1 1 2 2 Device 1 | . . 1 . Storage 2 | 1 1 . . Processor 1 | . . . 1 Hackware . | . . . . Protection 2 | . . 1 1 Artifact . | . . . . Weapon 5 | 2 2 1 . Energy Gun 2 | 1 1 . . Energy Cannon . | . . . . Ballistic Gun 1 | 1 . . . Ballistic Cannon . | . . . . Launcher 2 | . 1 1 . Special Weapon . | . . . . Impact Weapon . | . . . . Slashing Weapon . | . . . . Piercing Weapon . | . . . . Special Melee Weapon . | . . . . Unidentified Prototypes . | . . . . Parts Lost 7 | . 2 . 5 Power 1 | . 1 . . Propulsion 2 | . . . 2 Utility 1 | . . . 1 Weapon 3 | . 1 . 2 Highest Loss Streak 5 | . 1 . 5 To Critical Strikes . | . . . . Average Slot Usage (%) 96 | . 88 100 95 Engine 13 | . 13 14 14 Treads 27 | . 28 28 26 Device 1 | . . 2 . Storage 16 | . 17 17 14 Protection 6 | . . 7 12 Energy Gun 3 | . 5 2 . Ballistic Gun 13 | . 14 14 13 Launcher 10 | . 8 11 14 Peak Build Rating 13 | 6 7 13 13 Average Rating 8 | 4 6 8 11 On Entrance 6 | . 6 7 13 Naked Turns . | . . . . Heaviest Build 36 | 11 31 34 36 Greatest Support 40 | 40 40 40 40 Greatest Overweight (x) 1 | . . . 1 Average Overweight (x) . | . . . . Largest Inventory Capacity 15 | 8 15 15 15 Average Capacity 13 | 7 9 15 15 Most Carried 15 | 4 5 15 15 Average Carried 8 | 1 2 10 12 Final Capacity 15 | 8 15 15 15 Final Carried 15 | 2 5 15 12 Class Distribution -------------------- 100% | Mutant Dominant Class ---------------- Mutant | -10/Materials Mutant | -10/Mines Mutant | -10/Subcaves Resources | -11 -10 -10 -10 ----------- Run | Yrd Mat Min Sub Matter Collected 609 | 183 136 262 28 Remotely . | . . . . Salvage Created 357 | . 141 128 88 Parts 30 | . 12 12 6 Haulers Intercepted 1 | . 1 . . Recyclers Shooed 1 | . 1 . . Parts Field Recycled . | . . . . Retrieved Matter . | . . . . Parts Self-Destructed 5 | . . . 5 Prevented . | . . . . Kills | -11 -10 -10 -10 ------- Run | Yrd Mat Min Sub Combat Hostiles Destroyed 16 | . 7 6 3 Guns 3 | . 1 1 1 AOE 13 | . 6 5 2 Classes Destroyed 6 | . 4 1 1 Builder 1 | . 1 . . Tunneler 1 | . . 1 . Hauler 1 | . 1 . . Swarmer 8 | . 5 3 . Grunt 6 | . 2 3 1 Subdweller 2 | . . . 2 Best Kill Streak 4 | . 4 3 2 Combat Bots Only 3 | . 3 3 2 Max Kills in Single Turn 3 | . 3 2 1 Gunslinging . | . . . . Exploded 2 | . 2 2 1 Melee . | . . . . Uniques/NPCs Destroyed . | . . . . Combat | -11 -10 -10 -10 -------- Run | Yrd Mat Min Sub Hostile Shots Fired 110 | . 46 28 36 Missed 32 | . 11 9 12 Damage Taken 1061 | . 334 217 510 Core 252 | . 73 77 102 Absorbed by Shields . | . . . . Redirected to Shielding 18 | . . 18 . Core Remaining (%) 100 | 100 . . . Volleys Fired 39 | . 13 12 14 Largest 2 | . 2 2 2 Hottest 60 | . 60 50 50 Shots Fired 58 | . 20 20 18 Gun 40 | . 14 12 14 Cannon . | . . . . Launcher 18 | . 6 8 4 Special . | . . . . Kinetic 39 | . 13 12 14 Thermal . | . . . . Explosive 18 | . 6 8 4 Electromagnetic 1 | . 1 . . Robot Hit Streak 16 | . 5 6 16 Robot Miss Streak 3 | . 3 3 2 Penetration Max . | . . . . Secondary Targets . | . . . . Shots Hit Robots 29 | . 10 5 14 Core Hits 36 | . 15 8 13 Critical Kills . | . . . . Critical Parts Destroyed . | . . . . Critical Strikes . | . . . . Melee Attacks . | . . . . Impact . | . . . . Slashing . | . . . . Piercing . | . . . . Sneak Attacks . | . . . . Combat Hostiles . | . . . . Follow-up Attacks . | . . . . Damage Inflicted 1355 | . 513 325 517 Guns 185 | . 72 16 97 Cannons . | . . . . Explosions 1158 | . 429 309 420 Melee . | . . . . Ramming 12 | . 12 . . Kinetic 170 | . 57 16 97 Thermal . | . . . . Explosive 1158 | . 429 309 420 Electromagnetic 15 | . 15 . . Impact . | . . . . Slashing . | . . . . Piercing . | . . . . Highest Corruption . | . . . . Average Corruption . | . . . . Corruption Purged . | . . . . Corruption Blocked . | . . . . Overload Shots . | . . . . Overflow Damage 31 | . 6 25 . Projectiles . | . . . . Explosions 31 | . 6 25 . Melee . | . . . . Knockbacks . | . . . . Impact . | . . . . Kinetic . | . . . . Secondary . | . . . . Self-Inflicted Damage 40 | . . 40 . Shots 1 | . . 1 . Rammed 7 | . 6 1 . Targets Rammed 7 | . 6 1 . Kicked . | . . . . Crushed . | . . . . Highest Temperature 29 | . 29 24 . Average Temperature 9 | . 9 9 . Received Heat Transfer 243 | . 63 60 120 Siege Activations . | . . . . Robots Corrupted . | . . . . Combat Hostiles . | . . . . Parts Fried . | . . . . Impact Corruptions . | . . . . Robots Melted . | . . . . Combat Hostiles . | . . . . Parts Melted . | . . . . Heat Transferred . | . . . . Parts Sabotaged . | . . . . Parts Stolen . | . . . . Parts Stripped . | . . . . Power Chain Reactions . | . . . . Alert | -11 -10 -10 -10 ------- Run | Yrd Mat Min Sub Peak Influence 258 | . 258 132 . Initial 22 | . . 22 . Average 68 | . 148 42 . Maximum Alert Level 1 | . 1 . . Low Security (%) 90 | 100 64 100 . Level 1 9 | . 35 . . Level 2 . | . . . . Level 3 . | . . . . Level 4 . | . . . . Level 5 . | . . . . High Security . | . . . . Max Security . | . . . . Squads Dispatched . | . . . . Investigation . | . . . . Extermination . | . . . . Reinforcement . | . . . . Assault . | . . . . Garrison . | . . . . Intercept . | . . . . Searches Triggered . | . . . . Construction Impeded . | . . . . Haulers Reinforced . | . . . . Active Scanning Responses . | . . . . Cargo Convoy Interrupts . | . . . . Stealth | -11 -10 -10 -10 --------- Run | Yrd Mat Min Sub Distress Signals . | . . . . Communications Jammed . | . . . . Distress Signals . | . . . . Times Spotted 24 | . 10 7 7 Peak Tracking Total 4 | . 3 3 4 Tactical Retreats . | . . . . Traps | -11 -10 -10 -10 ------- Run | Yrd Mat Min Sub Traps Triggered . | . . . . Indirectly . | . . . . Trap Hack Attempts . | . . . . Triggered . | . . . . Disarmed . | . . . . Reprogrammed . | . . . . Reused . | . . . . Traps Extracted . | . . . . Installed . | . . . . Triggered 1 | . . 1 . Machines | -11 -10 -10 -10 ---------- Run | Yrd Mat Min Sub Machines Disabled 3 | . 2 1 . Max in Single Turn 1 | . 1 1 . Machines Repaired . | . . . . Machines Dismantled . | . . . . Machines Sabotaged . | . . . . Overloaded Fab Kills . | . . . . Hacking | -11 -10 -10 -10 --------- Run | Yrd Mat Min Sub Machines Accessed 2 | . 2 . . Terminals 1 | . 1 . . Fabricators . | . . . . Repair Stations . | . . . . Recycling Units 1 | . 1 . . Scanalyzers . | . . . . Garrison Access . | . . . . Total Hacks 2 | . 2 . . Successful 2 | . 2 . . Failed . | . . . . Catastrophic . | . . . . Database Lockouts . | . . . . Manual . | . . . . Terminals 1 | . 1 . . Fabricators . | . . . . Repair Stations . | . . . . Recycling Units 1 | . 1 . . Scanalyzers . | . . . . Garrison Access . | . . . . Terminal Hacks 1 | . 1 . . Zone Layout 1 | . 1 . . Fabricator Hacks . | . . . . Repair Station Hacks . | . . . . Recycling Unit Hacks 1 | . 1 . . Recycle Component 1 | . 1 . . Scanalyzer . | . . . . Garrison Access Hacks . | . . . . Unauthorized Hacks . | . . . . Terminals . | . . . . Fabricators . | . . . . Repair Stations . | . . . . Recycling Units . | . . . . Scanalyzers . | . . . . Garrison Access . | . . . . Data Cores Recovered . | . . . . Used . | . . . . Hacking Detections 1 | . 1 . . Full Trace Events . | . . . . Feedback Events . | . . . . Feedback Blocked . | . . . . Robot Schematics Acquired . | . . . . Robots Built . | . . . . Authchips . | . . . . Time . | . . . . Total Robot Build Rating . | . . . . Part Schematics Acquired . | . . . . Parts Built . | . . . . Authchips . | . . . . Time . | . . . . Total Part Build Rating . | . . . . Parts Repaired . | . . . . Time . | . . . . Parts Recycled 1 | . 1 . . Recycled Matter . | . . . . Retrieved Matter . | . . . . Retrieved Components . | . . . . Parts Scanalyzed . | . . . . Part Schematics Acquired . | . . . . Parts Damaged . | . . . . Bothacking | -11 -10 -10 -10 ------------ Run | Yrd Mat Min Sub Used RIF Installer . | . . . . Robots Hacked . | . . . . Non-combat . | . . . . Combat . | . . . . Robot Hacks Applied . | . . . . Relay Couplers Released . | . . . . Fabnet Peak Effective % . | . . . . Robots Rewired . | . . . . Allies Hacked . | . . . . Hacks Repelled . | . . . . Allies | -11 -10 -10 -10 -------- Run | Yrd Mat Min Sub Total Allies . | . . . . Largest Group . | . . . . Highest-Rated Group . | . . . . Highest-Rated Ally . | . . . . Total Orders . | . . . . Ally Attacks . | . . . . Total Damage . | . . . . Kills . | . . . . Allies Corrupted . | . . . . Allies Melted . | . . . . Intel | -11 -10 -10 -10 ------- Run | Yrd Mat Min Sub Robot Analysis Total . | . . . . Derelict Logs Recovered 1 | . . 1 . Drone Launches . | . . . . Drone Recoveries . | . . . . Exploration | -11 -10 -10 -10 ------------- Run | Yrd Mat Min Sub Turns Passed 1784 | 93 402 1008 281 Spaces Moved 1013 | 55 214 598 146 Core 7 | 7 . . . Treads 1006 | 48 214 598 146 Legs . | . . . . Wheels . | . . . . Hover . | . . . . Flight . | . . . . Fastest Speed 50 | 50 160 160 160 Average Speed 160 | 146 160 160 166 Slowest Speed 240 | 160 160 160 240 Overloaded Moves . | . . . . Propulsion Burnouts . | . . . . Robots Hopped . | . . . . Cave-ins Triggered . | . . . . Exploration Rate (%) 29 | 4 25 78 9 Regions Visited 3 Branch Regions 2 Pre-discovered Areas . | . . . . Known Exits Taken . | . . . . Unknown Exits Taken 3 | 1 1 1 . Scrap Searched 2 | . . 2 . Spaces Dug . | . . . . Terrain Destroyed 90 | . 41 37 12 Melee . | . . . . Projectile . | . . . . AOE 90 | . 41 37 12 Terrain Rammed . | . . . . Walls Destroyed . | . . . . Machines Disabled . | . . . . Actions | -11 -10 -10 -10 --------- Run | Yrd Mat Min Sub Total 1125 | 68 253 631 173 Wait 8 | . 8 . . Move 1010 | 54 213 597 146 Hop . | . . . . Pick Up 33 | 8 8 13 4 Fast Attach . | . . . . Attach 11 | 6 3 . 2 Detach 1 | . . . 1 Swap 6 | . 1 5 . Drop 10 | . 1 3 6 Fire 39 | . 13 12 14 Melee . | . . . . Ram . | . . . . Kick . | . . . . Crush 7 | . 6 1 . Escape Stasis . | . . . . Rewire . | . . . . Trap . | . . . . Miscellaneous . | . . . . Route ------- -11/Scrapyard -10/Materials -10/Mines -10/Subcaves History --------- Turn | Location | Event 64 | -11/Scrapyard | Discovered new exit (range 15) 94 | -11/Scrapyard | Entered Materials 321 | -10/Materials | Build established: Mutant 438 | -10/Materials | Discovered new exit (range 11) 496 | -10/Materials | Entered Mines 865 | -10/Mines | Learned Materials stockpile data 913 | -10/Mines | Joined a pair of Derelicts in attacking an 0b10 outpost 1203 | -10/Mines | Excavation squad dispatched 1203 | -10/Mines | A large section of the Mines collapsed 1417 | -10/Mines | Core integrity fell below 50% 1453 | -10/Mines | Excavation squad dispatched 1472 | -10/Mines | Discovered new exit (range 8) 1504 | -10/Mines | Entered Subcaves 1506 | -10/Subcaves | Shifting Twisted Machinery released Mak. System Shield 1510 | -10/Subcaves | Shifting Twisted Machinery released Sub. Machine Gun 1723 | -10/Subcaves | Ambushed by swarm of Subdwellers 1754 | -10/Subcaves | Core integrity fell below 20% 1785 | -10/Subcaves | Destroyed by GX-3GF(R) with Subdweller Laser Last Messages --------------- UW-X2B(R) emerges from the Twisted Machinery. R5-WDW(R) destroyed. H4-YUO(R) destroyed. 1Z-9QS(R) affixes Scrap Shield Fragment to Scrap Shield. UW-X2B(R) destroyed. Subatomizers dissect the Disposable Heat Sink. 1Z-9QS(R) affixes Scrap Shield Fragment to Scrap Shield. Subatomizers dissect the Disposable Heat Sink. Lgt. Treads destroyed. 1Z-9QS(R) affixes Scrap Shield Fragment to Scrap Shield. Lgt. Assault Rifle destroyed. 1Z-9QS(R) affixes Scrap Shield Fragment to Scrap Shield. PH-PSJ(R) emerges from concealment. Lgt. Treads destroyed. Grenade Launcher destroyed. Lgt. Armor Plating destroyed. Map ----- +----------------------------------------------------+ | ?????????????????????????????????????????????????? | | ?????????????????????????????????????????????????? | | ?????????????????????????????????????????????????? | | ?????????????????????????????????????????????????? | | ?????????????????????????????????????????????????? | | ?????????????????????????????????????????????????? | | ?????????????????????????????????????????????????? | | ?????????????????????????????????????????????????? | | ?????????????????????????????????????????????????? | | ?????????????????????????????????????????????????? | | ?????????????????????????????????????????????????? | | ?????????????????????????????????????????????????? | | ?????????????????????????????????????????????????? | | ?????????????????????????????????????????????????? | | ?????????????????????????????????????????????????? | | ?????????????????????????????????????????????????? | | ??????????????????????????###????????????????????? | | ?????????????????????????## ##???????????????????? | | ?????????????????????##### ###?????????????????? | | ??????????????????#??# #?????????????????? | | ?????????????????## ## #?????????????????? | | ?????????????????# ##????????????????? | | ?????????????????# ##???????????????? | | ??????????????????# #???????????????? | | ??????????????????# R #####???##??????? | | ???????????????????# @ R ## ##?# #??????? | | ???????????????????## #### ## ###????? | | ????????????????????# ###??## ###??? | | ????????????????????####??????### #??? | | ????????????????????????????????## #??? | | ?????????????????????????????????## ###??? | | ??????????????????????????????????## =% ##????? | | ???????????????????????????????#####% * #?????? | | ????????????????????????????#### ## ##?????? | | ??????????????????????????### ###???? | | ?????????????????????????#"" # #"###?? | | ?????????????????????????##" ###### ! #%# #?? | | ??????????????????????????#### ###?## %[ % #??? | | ?????????????????????????????# #?# ! !%#### | | ?????????????????????????##### ##?## ###*%[ | | ????????????????????????## #??##%##### ## | | ????????????????????????# ##?#% #### # | | ???????????????????????# ## ### # # "# | | ???????????????????????#???## # | | ???????????????????????????# | | ???????????????????????????#### ## # | | ??????????????????????????????#### # ####### | | ?????????????????????????????????# ### #????# | | ????????????????????????????????# #?#####????## | | ????????????????????????????????# #???????????## | +----------------------------------------------------+ Best States ------------- Heat Dissipation 35 Energy Generation 18 Energy Capacity 265 Matter Stores 300 Matter Capacity 300 Sight Range 16 Terrain Scan Density 10 Armor Coverage 150 Core Shielding 20 Evasion (%) 40 Recoil Reduction 2 Item Schematics ----------------- None Robot Schematics ------------------ None Fabricated ------------ Nothing Alien Tech Used ----------------- None Achievements -------------- None Challenges ------------ None Game ------ Seed WarpTransportDeflector Manual? 0 Play Time 00:21:18 Cumulative 2.0 hours Start 2024.10.10 @ 23:41:18 End 2024.10.11 @ 00:01:23 Sessions 1 Manual Loads 0 Difficulty Rogue Special Mode None Game No. 8 Rogue 8 Adventurer 0 Explorer 0 Win Type - Total 0 Types 0/0/0/0/0/0/0/0/0 Lore% 3 Gallery% 4 Achievement% 4 Wizard Run 0 Options --------- Layout 1 ASCII 0 Keyboard 0 Movement Arrows Keybinds 0 Fullscreen 1 Font 32/SmallcapsGlow Map View 50x35 Zoom Use 0% Tactical HUD 0 Map Filters NONE Filters NONE Steam 1 RUN: 34912139-a6fc-488b-b837-8b010ff2ab7a